Workbook

Sheet informace
A1: Název: | B1: Modelování funkcí v programu MS Excel
A2: Potřeby: | B2: Počítačová učebna, program MS Excel
A3: Počet žáků ve skupině: | B3: 1 (individuální práce)
A4: Časová náročnost: | B4: 1 vyučovací hodina (matematika, informatika)
A5: Cíle: | B5: Upevnit používání vzorců a podmínek „KDYŽ“ v programu MS Excel
B6: Představit praktické využití tohoto programu
B7: Vytvořit aplikaci pro vykreslování základních funkcí a jejich posunů (pomocí parametrů)
B8: Procvičit základní funkce a jejich posuny
B9: Uvědomit si význam jednotlivých parametrů u různých typů funkcí (společné znaky)
B10: Upravit rozhraní programu do určité estetické podoby
A11: Potřebné znalosti: | B11: · Vkládání vzorců do buněk
B12: · Absolutní a relativní odkazy na buňky souboru
B13: · Ovládání podmínky „KDYŽ“
B14: · Vkládání grafů a jejich nastavení
B15: · Používání číselníku (není nutné, stačí hodnotu parametru doplňovat ručně)
A16: Zadání úkolu: | B16: V programu MS Excel vypracujte aplikaci, která bude zobrazovat grafy funkcí. Na výběr jsou tyto typy funkcí:
B17: - lineární funkce
B18: - lineární funkce s absolutní hodnotou
B19: - kvadratická funkce
B20: - lineární lomená funkce
B21: Každá aplikace bude mít tyto části:
B22: 1. Nadpis, jméno žáka, předpis základní funkce (bez posunů)
B23: 2. Vypracované grafy pro jednotlivé parametry, kde graf reaguje na změnu parametrů
B24: (tj. zvlášť grafy pro tyto funkce – příklad na kvadratické:
B26: )
B27: 3. Předpis funkce se zvolenými parametry
B28: 4. Tabulka hodnot x a f(x), ze které jsou data pro graf (tedy hodnoty se také mění se změnou parametrů)
B29: Upravte vzhled aplikace tak, aby vše bylo přehledné a estetické.
A30: Hodnocení: | B30: Žáci prezentují své aplikace a zároveň diskutují o významu parametrů (co přesně v grafu mění, zda tento princip funguje u všech typů grafů). Společně diskutují i o grafické stránce aplikace.
A31: Poznámky: | B31: Vypracované příklady jsou v přiloženém souboru Funkce.exe. Lineární lomenou funkci doporučuji přiřadit šikovnějším žákům. Zde je třeba ji rozdělit na dvě funkce (každá větev hyperboly má svoji), protože graf je vykreslován z tabulky a proto MS Excel nerozpozná, že definičním oborem funkce nejsou všechna reálná čísla (tedy graf prochází i bodem [0;0]).
B32: Podrobnější návod na tvorbu aplikace je na další záložce.
B33: Tímto způsobem vzniká aplikace, kterou je možné využít při výuce (pouze jako příklad). Slouží pro názorný výklad změn grafů s určitým parametrem (koeficientem).
B34: Aplikaci je možné použít i jako kontrolu pro žáka, zda příklad vypracoval správně (při samostudiu).

Sheet návod
B2: Kvadratická funkce | G2: Aby a mohlo být menší jak nula, zadáme do buňky odkaz na skrytou buňku J3 (J5) a od ní odečteme nějakou konstantu. | L2: Skrytá buňka pro hodnotu z číselníku, ta může být pouze kladná. Odkaz z číselníku tedy směřuje na tuto buňku. | O2: Hodnoty v tabulce jsou ve sloupci y zadané pomocí vzorců s odkazy na parametry a hodnotu ve sloupci x (absolutní nebo relativní odkazy pro kopírování vzorce: pomocí F4).
C3: Funkce: | H3: Zadání parametru: | L3: Hodnoty v tabulce:
C4: y = (x + b)2 + c | H4: c= | I4: =K4-3 -> -2 | K4: 1 | O4: x | P4: y
B5: Znaménko do předpisu funkce vložíme pomocí podmínky KDYŽ, která se bude vztahovat na kladnost, či záporonost parametru. Hodnotu parametru potom do předpisu funkce musíme vkládat v absolutní hodnotě. Tedy předpis pro buňku E9: =KDYŽ(I6<0; "-"; "+"). | L5: Číselník vkládáme pomocí záložky "Vývojář" - "Vložit" - čtvrtá ikona v "Ovládací prvky formuláře" | O5: -4 | P5: =(O5+$I$6)^2+$I$4 -> 7
H6: b= | I6: =K6-3 -> 1 | K6: 4 | O6: -3.5 | P6: =(O6+$I$6)^2+$I$4 -> 4.25
O7: -3 | P7: 2
C8: Graf funkce: | F8: y= | O8: -2.5 | P8: 0.25
C9: f: y= | D9: (x | E9: =IF(I6<0, "-", "+") -> + | G9: =ABS(I6)&")^2" -> 1)^2 | H9: =IF(I4<0, "-", "+") -> - | I9: =ABS(I4) -> 2 | O9: -2 | P9: -1
O10: -1.5 | P10: -1.75
O11: -1 | P11: -2
O12: -0.5 | P12: -1.75
O13: 0 | P13: -1
O14: 0.5 | P14: 0.25
O15: 1 | P15: 2
O16: 1.5 | P16: 4.25
O17: 2 | P17: 7
O18: 2.5 | P18: 10.25
O19: 3 | P19: 14
O20: 3.5 | P20: 18.25
O21: 4 | P21: 23
K48: 0
K50: 0

Sheet lineární
A1: LINEÁRNÍ FUNKCE
A3: Funkce: | F3: Zadání konstanty: | J3: Hodnoty v tabulce:
A4: y = x + a | F4: a= | G4: =I4-3 -> 2 | I4: 5 | J4: x | K4: -4 | L4: -3 | M4: -2 | N4: -1 | O4: 0 | P4: 1 | Q4: 2 | R4: 3 | S4: 4
J5: y | K5: =K4+$G$4 -> -2 | L5: =L4+$G$4 -> -1 | M5: 0 | N5: 1 | O5: 2 | P5: 3 | Q5: 4 | R5: 5 | S5: 6
A7: Graf funkce: | E7: y= | F7: x | G7: =IF(G4<0, "-", "+") -> + | H7: =ABS(G4) -> 2
A29: Funkce: | F29: Zadání konstanty: | J29: Hodnoty v tabulce:
A30: y= | B30: b | C30: * | D30: x | F30: b= | G30: =I30/2-2 -> -1.5 | I30: 1 | J30: x | K30: -4 | L30: -3 | M30: -2 | N30: -1 | O30: 0 | P30: 1 | Q30: 2 | R30: 3 | S30: 4
J31: y | K31: =K30*$G$30 -> 6 | L31: =L30*$G$30 -> 4.5 | M31: 3 | N31: 1.5 | O31: 0 | P31: -1.5 | Q31: -3 | R31: -4.5 | S31: -6
A33: Graf funkce: | E33: y= | F33: =G30 -> -1.5 | G33: * | H33: x

Sheet lineární s abs. h.
A1: LINEÁRNÍ FUNKCE S ABSOLUTNÍ HODNOTOU
A3: Funkce: | F3: Zadání parametru: | J3: Hodnoty v tabulce:
A4: y = |x| + a | F4: a= | G4: =I4-3 -> -3 | I4: 0 | J4: x | K4: -4 | L4: -3 | M4: -2 | N4: -1 | O4: 0 | P4: 1 | Q4: 2 | R4: 3 | S4: 4
J5: y | K5: =ABS(K4)+$G$4 -> 1 | L5: =ABS(L4)+$G$4 -> 0 | M5: -1 | N5: -2 | O5: -3 | P5: -2 | Q5: -1 | R5: 0 | S5: 1
A7: Graf funkce: | E7: y= | F7: |x| | G7: =IF(G4<0, "-", "+") -> - | H7: =ABS(G4) -> 3
A25: Funkce: | F25: Zadání parametru: | J25: Hodnoty v tabulce:
A26: y = |x + b| | F26: b= | G26: =I26-3 -> -2 | I26: 1 | J26: x | K26: -4 | L26: -3 | M26: -2 | N26: -1 | O26: 0 | P26: 1 | Q26: 2 | R26: 3 | S26: 4
J27: y | K27: =ABS(K26+$G$26) -> 6 | L27: =ABS(L26+$G$26) -> 5 | M27: 4 | N27: 3 | O27: 2 | P27: 1 | Q27: 0 | R27: 1 | S27: 2
A29: Graf funkce: | E29: y= | F29: |x | G29: =IF(G26<0, "-", "+") -> - | H29: =ABS(G26)&"|" -> 2|
A47: Funkce: | F47: Zadání parametru: | J47: Hodnoty v tabulce:
A48: y = |x + b| + a | F48: a= | G48: =I48-3 -> 1 | I48: 4 | J48: x | K48: -4 | L48: -3 | M48: -2 | N48: -1 | O48: 0 | P48: 1 | Q48: 2 | R48: 3 | S48: 4
J49: y | K49: =ABS(K48+$G$50)+$G$48 -> 2 | L49: =ABS(L48+$G$50)+$G$48 -> 1 | M49: 2 | N49: 3 | O49: 4 | P49: 5 | Q49: 6 | R49: 7 | S49: 8
F50: b= | G50: =I50-3 -> 3 | I50: 6
A52: Graf funkce: | E52: y= | F52: |x | G52: =IF(G50<0, "-", "+") -> + | H52: =ABS(G50)&"|" -> 3| | J52: =IF(G48<0, "-", "+") -> + | K52: =ABS(G48) -> 1

Sheet kvadratická
A1: KVADRATICKÁ FUNKCE
P2: volit bodový graf s vyhlazenými spojnicemi
A3: Funkce: | F3: Zadání parametru: | J3: Hodnoty v tabulce:
A4: y = x2 + a | F4: a= | G4: =I4-3 -> -2 | I4: 1 | M4: x | N4: y
M5: -4 | N5: =(M5)^2+$G$4 -> 14
M6: -3.5 | N6: =(M6)^2+$G$4 -> 10.25
A7: Graf funkce: | E7: y= | F7: x2 | G7: =IF(G4<0, "-", "+") -> - | H7: =ABS(G4) -> 2 | M7: -3 | N7: 7
M8: -2.5 | N8: 4.25
M9: -2 | N9: 2
M10: -1.5 | N10: 0.25
M11: -1 | N11: -1
M12: -0.5 | N12: -1.75
M13: 0 | N13: -2
M14: 0.5 | N14: -1.75
M15: 1 | N15: -1
M16: 1.5 | N16: 0.25
M17: 2 | N17: 2
M18: 2.5 | N18: 4.25
M19: 3 | N19: 7
M20: 3.5 | N20: 10.25
M21: 4 | N21: 14
A25: Funkce: | F25: Zadání parametru: | J25: Hodnoty v tabulce:
A26: y = (x + b)2 | F26: a= | G26: =I26-3 -> 1 | I26: 4 | M26: x | N26: y
M27: -4 | N27: =(M27+$G$26)^2 -> 9
M28: -3.5 | N28: =(M28+$G$26)^2 -> 6.25
A29: Graf funkce: | D29: y= | E29: (x | F29: =IF(G26<0, "-", "+") -> + | G29: =ABS(G26)&")^2" -> 1)^2 | M29: -3 | N29: 4
M30: -2.5 | N30: 2.25
M31: -2 | N31: 1
M32: -1.5 | N32: 0.25
M33: -1 | N33: 0
M34: -0.5 | N34: 0.25
M35: 0 | N35: 1
M36: 0.5 | N36: 2.25
M37: 1 | N37: 4
M38: 1.5 | N38: 6.25
M39: 2 | N39: 9
M40: 2.5 | N40: 12.25
M41: 3 | N41: 16
M42: 3.5 | N42: 20.25
M43: 4 | N43: 25
A47: Funkce: | F47: Zadání parametru: | J47: Hodnoty v tabulce:
A48: y = (x + b)2 + a | F48: a= | G48: =I48-3 -> -1 | I48: 2 | M48: x | N48: y
M49: -4 | N49: =(M49+$G$50)^2+$G$48 -> 24
F50: b= | G50: =I50-3 -> -1 | I50: 2 | M50: -3.5 | N50: =(M50+$G$50)^2+$G$48 -> 19.25
M51: -3 | N51: 15
A52: Graf funkce: | D52: y= | E52: (x | F52: =IF(G50<0, "-", "+") -> - | G52: =ABS(G50)&")^2" -> 1)^2 | H52: =IF(G48<0, "-", "+") -> - | J52: =ABS(G48) -> 1 | M52: -2.5 | N52: 11.25
M53: -2 | N53: 8
M54: -1.5 | N54: 5.25
M55: -1 | N55: 3
M56: -0.5 | N56: 1.25
M57: 0 | N57: 0
M58: 0.5 | N58: -0.75
M59: 1 | N59: -1
M60: 1.5 | N60: -0.75
M61: 2 | N61: 0
M62: 2.5 | N62: 1.25
M63: 3 | N63: 3
M64: 3.5 | N64: 5.25
M65: 4 | N65: 8
A70: Funkce: | F70: Zadání parametru: | J70: Hodnoty v tabulce:
A71: y = c*x 2 | F71: c= | G71: =I71-3 -> 1 | I71: 4 | M71: x | N71: y
M72: -4 | N72: =(M72)^2*$G$71 -> 16
M73: -3.5 | N73: =(M73)^2*$G$71 -> 12.25
A74: Graf funkce: | D74: y= | E74: x^2 | F74: * | G74: =G71 -> 1 | M74: -3 | N74: 9
M75: -2.5 | N75: 6.25
M76: -2 | N76: 4
M77: -1.5 | N77: 2.25
M78: -1 | N78: 1
M79: -0.5 | N79: 0.25
M80: 0 | N80: 0
M81: 0.5 | N81: 0.25
M82: 1 | N82: 1
M83: 1.5 | N83: 2.25
M84: 2 | N84: 4
M85: 2.5 | N85: 6.25
M86: 3 | N86: 9
M87: 3.5 | N87: 12.25
M88: 4 | N88: 16

Sheet lin. lomená
A1: LINEÁRNÍ LOMENÁ FUNKCE
M2: volit bodový graf s vyhlazenými spojnicemi
A3: Funkce: | F3: Zadání konstanty: | J3: Hodnoty v tabulce:
A4: y = 1/x + a | F4: a= | G4: =I4-3 -> 1 | I4: 4 | M4: x | N4: y | O4: y
M5: -4 | N5: =1/M5+$G$4 -> 0.75
M6: -3.5 | N6: =1/M6+$G$4 -> 0.7142857143
A7: Graf funkce: | E7: y= | F7: 1/x | G7: =IF(G4<0, "-", "+") -> + | H7: =ABS(G4) -> 1 | M7: -3 | N7: 0.6666666667
M8: -2.5 | N8: 0.6
M9: -2 | N9: 0.5
M10: -1.5 | N10: 0.3333333333
M11: -1 | N11: 0
M12: -0.5 | N12: -1
M13: -0.2 | N13: -4
M14: 0
M15: 0.2 | O15: =1/M15+$G$4 -> 6
M16: 0.5 | O16: =1/M16+$G$4 -> 3
M17: 1 | O17: 2
M18: 1.5 | O18: 1.666666667
M19: 2 | O19: 1.5
M20: 2.5 | O20: 1.4
M21: 3 | O21: 1.333333333
M22: 3.5 | O22: 1.285714286
M23: 4 | O23: 1.25
A37: Funkce: | F37: Zadání konstanty: | J37: Hodnoty v tabulce:
A38: y = 1/(x + b) | F38: b= | G38: =I38-3 -> 0 | I38: 3 | M38: x | N38: y | O38: y
M39: =-(G38)-4 -> -4 | N39: =1/(M39+$G$38) -> -0.25
M40: =-(G38)-3.5 -> -3.5 | N40: =1/(M40+$G$38) -> -0.2857142857
A41: Graf funkce: | E41: y= | F41: 1/(x | G41: =IF(G38<0, "-", "+") -> + | H41: =ABS(G38)&")" -> 0) | M41: =-(G38)-3 -> -3 | N41: -0.3333333333
M42: =-(G38)-2.5 -> -2.5 | N42: -0.4
M43: =-(G38)-2 -> -2 | N43: -0.5
M44: =-(G38)-1.5 -> -1.5 | N44: -0.6666666667
M45: =-(G38)-1 -> -1 | N45: -1
M46: =-(G38)-0.5 -> -0.5 | N46: -2
M47: =-(G38)-0.2 -> -0.2 | N47: -5
M48: =-(G38) -> 0
M49: =-(G38)+0.2 -> 0.2 | O49: =1/(M49+$G$38) -> 5
M50: =-(G38)+0.5 -> 0.5 | O50: =1/(M50+$G$38) -> 2
M51: =-(G38)+1 -> 1 | O51: 1
M52: =-(G38)+1.5 -> 1.5 | O52: 0.6666666667
M53: =-(G38)+2 -> 2 | O53: 0.5
M54: =-(G38)+2.5 -> 2.5 | O54: 0.4
M55: =-(G38)+3 -> 3 | O55: 0.3333333333
M56: =-(G38)+3.5 -> 3.5 | O56: 0.2857142857
M57: =-(G38)+4 -> 4 | O57: 0.25
A71: Funkce: | F71: Zadání konstanty: | J71: Hodnoty v tabulce:
A72: y = 1/(x + b) | F72: b= | G72: =I72-3 -> 0 | I72: 3 | M72: x | N72: y | O72: y
M73: =-(G72)-4 -> -4 | N73: =1/(M73+$G$72)+$G$74 -> -0.25
F74: a= | G74: =I74-3 -> 0 | I74: 3 | M74: =-(G72)-3.5 -> -3.5 | N74: =1/(M74+$G$72)+$G$74 -> -0.2857142857
M75: =-(G72)-3 -> -3 | N75: =1/(M75+$G$72)+$G$74 -> -0.3333333333
M76: =-(G72)-2.5 -> -2.5 | N76: =1/(M76+$G$72)+$G$74 -> -0.4
M77: =-(G72)-2 -> -2 | N77: =1/(M77+$G$72)+$G$74 -> -0.5
A78: Graf funkce: | C78: y= | D78: 1/(x | E78: =IF(G72<0, "-", "+") -> + | F78: =ABS(G72)&")" -> 0) | G78: =IF(G74<0, "-", "+") -> + | H78: =G74 -> 0 | M78: =-(G72)-1.5 -> -1.5 | N78: =1/(M78+$G$72)+$G$74 -> -0.6666666667
M79: =-(G72)-1 -> -1 | N79: =1/(M79+$G$72)+$G$74 -> -1
M80: =-(G72)-0.5 -> -0.5 | N80: =1/(M80+$G$72)+$G$74 -> -2
M81: =-(G72)-0.2 -> -0.2 | N81: =1/(M81+$G$72)+$G$74 -> -5
M82: =-(G72) -> 0
M83: =-(G72)+0.2 -> 0.2 | O83: =1/(M83+$G$72)+$G$74 -> 5
M84: =-(G72)+0.5 -> 0.5 | O84: =1/(M84+$G$72)+$G$74 -> 2
M85: =-(G72)+1 -> 1 | O85: =1/(M85+$G$72)+$G$74 -> 1
M86: =-(G72)+1.5 -> 1.5 | O86: =1/(M86+$G$72)+$G$74 -> 0.6666666667
M87: =-(G72)+2 -> 2 | O87: =1/(M87+$G$72)+$G$74 -> 0.5
M88: =-(G72)+2.5 -> 2.5 | O88: =1/(M88+$G$72)+$G$74 -> 0.4
M89: =-(G72)+3 -> 3 | O89: =1/(M89+$G$72)+$G$74 -> 0.3333333333
M90: =-(G72)+3.5 -> 3.5 | O90: =1/(M90+$G$72)+$G$74 -> 0.2857142857
M91: =-(G72)+4 -> 4 | O91: =1/(M91+$G$72)+$G$74 -> 0.25
